Workbook

Sheet 記入例
A1: 御 請 求 書
V2: 1 | AA2: ／ | AE2: 1
K4: 請求日 | P4: ： | Q4: 0000 | V4: 年 | X4: 00 | AB4: 月 | AD4: 00 | AH4: 日
A6: 大道産業株式会社 御中
J7: 会社名 | K7: 〇〇〇〇株式会社
J8: 登録番号 | K8: T | L8: 0000000000000
J9: 住所 | K9: 〒 | L9: 000-0000
K10: ○○県○○市○○区○○00-00-00○○ビル
A11: 請求金額合計 | D11: =W32 -> 684000 | J11: 電話番号 | K11: 00-0000-0000
A13: 工事件名 | C13: 令和00年 〇〇〇〇工事 | K13: 発注担当者
A14: 施工場所 | C14: ○○県○○市○○区○○ | K14: 部署 | Q14: 東京支店
K15: 氏名 | Q15: 大道 太郎
I17: 「※」 | J17: は軽減税率対象、「非」は消費税非課税
A19: 日付 | B19: 項目 | J19: 数量 | L19: 単価 | W19: 金額 | AK19: 「数量」欄の選択肢にない単位は、以下に入力して追加可能です（３つまで） | AO19: 消費税区分 | AP19: ※ | AQ19: 非
A20: 0/0 | B20: 〇〇 | J20: 50 | K20: ㎥ | L20: 4000 | W20: =IF(J20="","",J20*L20) -> 200000 | AK20: 数量単位 | AL20: 区画 | AO20: 式 | AP20: 組 | AQ20: 人 | AR20: ｍ | AS20: ㎡ | AT20: ㎥ | AU20: ㎝ | AV20: ｔ | AW20: ㎏ | AX20: ㍑ | AY20: 缶 | AZ20: ｾｯﾄ | BA20: 巻 | BB20: 個 | BC20: 本 | BD20: 箱 | BE20: ｹｰｽ | BF20: 枚 | BG20: 台 | BH20: 基 | BI20: 文字 | BJ20: 箇所 | BK20: か所 | BL20: 日 | BM20: 個口
A21: 0/0 | B21: △△ | I21: ※ | J21: 100 | K21: 個 | L21: 500 | W21: =IF(J21="","",J21*L21) -> 50000
A22: 0/0 | B22: □□ | I22: 非 | J22: 10 | K22: 区画 | L22: 30000 | W22: =IF(J22="","",J22*L22) -> 300000
A23: 0/0 | B23: ◇◇ | J23: 1 | K23: 式 | L23: 100000 | W23: =IF(J23="","",J23*L23) -> 100000
W24: =IF(J24="","",J24*L24) -> 
A26: 税抜請求金額合計 | W26: =SUM(W20:AI25) -> 650000
I28: 税抜課税対象金額 | L28: 消費税額 | W28: 消費税込金額
E29: 10％課税対象合計 | I29: =SUMIF(I20:I25,"",W20:W25) -> 300000 | L29: =ROUNDDOWN(I29*10%,0) -> 30000 | W29: =+I29+L29 -> 330000
E30: 08％課税対象合計 | I30: =SUMIF(I20:I25,"※",W20:W25) -> 50000 | L30: =ROUNDDOWN(I30*8%,0) -> 4000 | W30: =+I30+L30 -> 54000
E31: 非課税合計 | I31: =SUMIF(I20:I25,"非",W20:W25) -> 300000 | L31: ― | W31: =+I31 -> 300000
I32: =SUM(I29:K31) -> 650000 | L32: =SUM(L29:V31) -> 34000 | W32: =SUM(W29:AI31) -> 684000
A34: 大道産業社内処理欄
C35: 受付印 | L35: 社内確認
F36: 工事番号 | I36: ―
F38: 処理区分
C41: ※立替金処理明細
C42: 立替対象先 | I42: 課税対象金額 | L42: 消費税 | X42: 消費税込金額
C44: 消費税10％課税対象
C45: 消費税08％課税対象
C46: 非課税相当対象

Sheet 請求書
A1: 御 請 求 書
V2: 1 | AA2: ／ | AE2: 1 | AK2: ver 1.0.6 | AL2: ・日付の入力欄をまとめる
AL3: ・消費税欄を手入力可能に
A4: 未記入（黄色セル）の項目があります | K4: 請求日 | P4: ： | AL4: ・項目欄を変更可能に
A6: 大道産業株式会社 御中
J7: 会社名
J8: 登録番号 | K8: T
J9: 住所 | K9: 〒
A11: 請求金額合計 | D11: =W32 -> 0 | J11: 電話番号
A13: 工事件名 | K13: 大 道 産 業 発 注 担 当 者
A14: 施工場所 | K14: 部署
K15: 氏名
I17: 「※」 | J17: は軽減税率対象、「非」は消費税非課税
A19: 日付 | B19: 項目 | J19: 数量 | L19: 単価 | W19: 金額 | AK19: 「数量」欄の選択肢にない単位は、以下に入力して追加可能です（３つまで） | AO19: 消費税区分 | AP19: ※ | AQ19: 非
W20: =J20*L20 -> 0 | AK20: 数量単位 | AO20: 式 | AP20: 組 | AQ20: 人 | AR20: ｍ | AS20: ㎡ | AT20: ㎥ | AU20: ㎝ | AV20: ｔ | AW20: ㎏ | AX20: ㍑ | AY20: 缶 | AZ20: ｾｯﾄ | BA20: 巻 | BB20: 個 | BC20: 本 | BD20: 箱 | BE20: ｹｰｽ | BF20: 枚 | BG20: 台 | BH20: 基 | BI20: 文字 | BJ20: 箇所 | BK20: か所 | BL20: 日 | BM20: 個口
W21: =J21*L21 -> 0
W22: =J22*L22 -> 0
W23: 0
W24: 0
W25: =J25*L25 -> 0
A26: 税抜請求金額合計 | W26: =SUM(W20:AI25) -> 0
I28: 税抜課税対象金額 | L28: 消費税額 | W28: 消費税込金額
E29: 10％課税対象合計 | I29: =SUMIF(I20:I25,"",W20:W25) -> 0 | L29: =ROUNDDOWN(I29*10%,0) -> 0 | W29: =+I29+L29 -> 0
E30: 08％課税対象合計 | I30: =SUMIF(I20:I25,"※",W20:W25) -> 0 | L30: =ROUNDDOWN(I30*8%,0) -> 0 | W30: =+I30+L30 -> 0
E31: 非課税合計 | I31: =SUMIF(I20:I25,"非",W20:W25) -> 0 | L31: ― | W31: =+I31 -> 0
I32: =SUM(I29:K31) -> 0 | L32: =SUM(L29:V31) -> 0 | W32: =SUM(W29:AI31) -> 0
A34: 大道産業社内処理欄
C35: 受付印 | L35: 社内確認
F36: 工事番号 | I36: ―
F38: 処理区分
C41: ※立替金処理明細
C42: 立替対象先 | I42: 課税対象金額 | L42: 消費税 | X42: 消費税込金額
C44: 消費税10％課税対象
C45: 消費税08％課税対象
C46: 非課税相当対象

Sheet 2ページ目以降 (hidden)
A1: 御 請 求 書
V2: =+A45 -> 0 | AA2: ／ | AE2: =請求書!$AE$2 -> 1
K4: 請求日 | P4: ： | Q4: =+請求書!$Q$4 -> 00:00:00
A6: =請求書!$A$6 -> 大道産業株式会社 御中
J7: 会社名 | K7: =IF(請求書!$K$7=0,"",請求書!$K$7) -> 
J8: 登録番号 | K8: T | L8: =IF(請求書!$L$8=0,"",請求書!$L$8) -> 
J9: 住所 | K9: 〒 | L9: =IF(請求書!$L$9=0,"",請求書!$L$9) -> 
K10: =IF(請求書!$K$10=0,"",請求書!$K$10) -> 
J11: 電話番号 | K11: =IF(請求書!$K$11=0,"",請求書!$K$11) -> 
A13: 工事件名 | C13: =IF(請求書!$C$13=0,"",請求書!$C$13) ->  | K13: 発注担当者
A14: 施工場所 | C14: =IF(請求書!$C$14=0,"",請求書!$C$14) ->  | K14: 部署 | Q14: =IF(請求書!$Q$14=0,"",請求書!$Q$14) -> 
K15: 氏名 | Q15: =IF(請求書!$Q$15=0,"",請求書!$Q$15) -> 
I17: 「※」 | J17: は軽減税率対象、「非」は消費税非課税
A19: 日付 | B19: 項目 | J19: 数量 | L19: 単価 | W19: 金額
W20: =J20*L20 -> 0
W21: =J21*L21 -> 0
W22: =J22*L22 -> 0
W23: 0
W24: 0
W25: 0
W26: 0
W27: 0
W28: 0
W29: 0
W30: 0
W31: 0
W32: 0
W33: 0
W34: 0
W35: 0
W36: 0
W37: 0
W38: 0
W39: 0
W40: 0
W41: 0
W42: 0
W43: 0
W44: 0
W45: =SUM(W20:AI44) -> 0
A46: 税抜請求金額合計
